bitfinex-derivatives/quotes_ETHF0:USTF0_20240922
["timestamp","ask_amount","ask_price","bid_price","bid_amount"]
[1727042701959,3.2078,2532.3,2531.9,3.2078]
[1727042702371,3.2078,2533.5,2532.2,3.2078]
[1727042702665,0.39448,2534.6,2533.4,3.2078]
[1727042702870,3.2078,2534.7,2533.3,2.98]
[1727042702871,0.39453,2534.3,2533.3,2.98]
[1727042703058,3.2078,2534.4,2533.4,3.2078]
[1727042703461,3.2078,2534.4,2533.5,3.2078]
[1727042703666,3.2078,2534.4,2533.2,7.902]
[1727042703873,3.2078,2534.4,2533.5,0.39464]
[1727042704072,3.2078,2534.1,2533.2,7.902]
[1727042704263,3.2078,2534.1,2533.5,0.39464]
[1727042704568,3.2078,2534.1,2533.6,3.2078]
[1727042704974,3.2078,2534.1,2533.7,0.39461]
[1727042705165,3.2078,2534.1,2533.8,0.3946]
[1727042705358,3.2078,2534.1,2533.6,3.2078]
[1727042705764,3.2078,2534.1,2533.3,0.39468]
[1727042705969,3.2078,2534.1,2533.1,11.1098]
[1727042706273,3.2078,2533.8,2533.1,11.1098]
[1727042706570,2.98,2534.6,2532.4,1.02686465]
[1727042706571,3.2078,2533.2,2532.4,1.02686465]
[1727042706866,3.2078,2533.0,2532.0,3.2078]
[1727042707070,3.2078,2533.0,2532.0,3.60267]
[1727042707467,3.2078,2533.0,2532.0,3.2078]
[1727042707668,3.2078,2532.7,2532.0,3.2078]
[1727042707865,6.1878,2532.7,2532.0,3.2078]
[1727042708070,3.2078,2532.7,2532.1,0.39486]
[1727042708265,3.2078,2532.7,2532.0,3.2078]
[1727042708461,3.2078,2532.7,2532.0,3.60267]
[1727042708878,0.39479,2532.6,2532.0,3.2078]
[1727042709063,12.1878,2532.7,2532.0,3.2078]
[1727042709264,0.5582,2532.5,2532.0,3.2078]
[1727042709470,0.5582,2532.5,2532.0,3.60268]
[1727042709669,0.5582,2532.5,2532.2,0.39484]
[1727042709874,3.2078,2532.7,2532.0,3.2078]
[1727042710269,6.58258,2532.7,2532.0,3.2078]
[1727042710567,6.58258,2532.7,2531.2,1.0667]
[1727042710568,2.98,2532.4,2531.3,3.2078]
[1727042710764,3.2078,2531.4,2530.2,6.26216041]
[1727042710971,3.2078,2530.9,2530.6,0.39509]
[1727042711166,0.39501,2531.2,2530.2,3.2078]
[1727042711366,3.2078,2530.7,2530.1,0.39517]
[1727042711567,3.2078,2530.8,2530.1,3.2078]
[1727042711773,3.2078,2530.8,2529.8,3.7559]
[1727042711967,3.2078,2531.1,2530.1,3.2078]
[1727042712168,3.2078,2531.1,2530.6,0.39509]
[1727042712466,3.2078,2531.1,2530.5,0.39511]
[1727042712768,6.1878,2531.1,2530.1,3.2078]
[1727042712973,3.2078,2530.8,2529.8,0.5481]
[1727042713176,3.2078,2530.8,2530.3,0.39514]
[1727042713373,3.2078,2530.8,2530.0,3.2078]
[1727042713771,3.2078,2530.8,2530.2,0.39516]
[1727042713968,3.2078,2530.8,2530.0,3.2078]
[1727042714372,3.2078,2530.8,2530.2,0.39515]
[1727042714578,6.1878,2531.1,2530.3,0.39514]
[1727042714785,3.2078,2531.1,2530.5,0.39511]
[1727042715080,3.2078,2531.1,2530.4,3.2078]
[1727042715381,3.2078,2531.1,2530.0,3.96796]
[1727042715382,6.1878,2531.1,2530.0,3.2078]
[1727042715582,3.2078,2530.8,2530.3,0.39514]
[1727042715772,2.98,2531.1,2530.0,3.2078]
[1727042715773,3.2078,2530.7,2530.0,3.2078]
[1727042716081,3.2078,2530.7,2530.1,0.39517]
[1727042716267,3.2078,2531.0,2530.0,3.2078]
[1727042716471,3.2078,2531.0,2530.3,3.2078]
[1727042716781,3.2078,2531.0,2530.2,0.39516]
[1727042716982,3.2078,2531.0,2530.2,3.2078]
[1727042717372,3.2078,2531.0,2530.5,0.3951]
[1727042717571,3.2078,2531.0,2530.3,0.39515]
[1727042717782,3.2078,2531.0,2530.2,3.2078]
[1727042717978,3.2078,2530.3,2529.4,3.2078]
[1727042718181,6.1878,2530.0,2529.1,3.2078]
[1727042718479,6.1878,2530.0,2529.2,0.39532]
[1727042718480,3.2078,2529.7,2529.2,0.39532]
[1727042718683,3.2078,2529.7,2529.1,3.2078]
[1727042718880,3.2078,2529.7,2529.3,0.3953]
[1727042719083,3.2078,2530.0,2529.4,0.39527]
[1727042719386,0.39515,2530.3,2529.3,3.2078]
[1727042719387,3.2078,2530.3,2529.3,3.2078]
[1727042720182,3.2078,2529.7,2529.0,3.2078]
[1727042720390,0.53,2530.4,2527.9,0.54224439]
[1727042720391,3.2078,2529.3,2528.7,3.2078]
[1727042720682,3.2078,2529.3,2528.9,0.39536]
[1727042720988,3.2078,2530.0,2529.0,3.2078]
[1727042721284,3.2078,2530.0,2528.3,1.51155]
[1727042721285,3.2078,2529.7,2529.1,0.39533]
[1727042721473,3.2078,2529.7,2528.3,4.49155]
[1727042721474,3.2078,2529.7,2529.0,3.2078]
[1727042721679,3.2078,2530.0,2529.6,0.39524]
[1727042721985,3.2078,2530.0,2529.2,3.2078]
[1727042722286,3.2078,2530.0,2529.3,0.39529]
[1727042722587,3.2078,2530.0,2529.4,0.39528]
[1727042722782,3.2078,2530.0,2528.9,3.2078]
[1727042722783,3.2078,2530.0,2529.7,0.39523]
[1727042722979,3.2078,2530.9,2530.5,0.39511]
[1727042723289,3.2078,2530.9,2530.6,0.3951]
[1727042723584,3.2078,2530.9,2530.6,0.39509]
[1727042723777,3.2078,2530.9,2530.8,0.39507]
[1727042723975,3.2078,2530.9,2530.4,3.2078]
[1727042723976,3.2078,2531.2,2531.1,0.39502]
[1727042724174,3.2078,2531.2,2530.7,3.2078]
[1727042724375,3.2078,2531.2,2530.2,3.2078]
[1727042724581,3.2078,2531.2,2530.7,0.39507]
[1727042724781,3.2078,2531.2,2530.6,0.39509]
[1727042724984,3.2078,2531.2,2530.5,0.39511]
[1727042725278,3.2078,2530.9,2530.5,0.39511]
[1727042725484,3.2078,2531.2,2530.2,3.2078]
[1727042725671,3.2078,2531.2,2530.5,3.2078]
[1727042725870,6.1878,2531.1,2529.7,3.2078]
[1727042726097,0.98749,2531.3,2529.7,3.60303]
[1727042726098,3.2078,2530.5,2529.7,3.60303]
[1727042726287,3.60292,2530.5,2529.7,3.60303]
[1727042726482,3.2078,2530.5,2529.7,3.2078]
[1727042726679,0.39516,2530.2,2529.7,3.2078]
[1727042726980,3.2078,2530.8,2530.0,3.2078]
[1727042727173,3.2078,2530.9,2530.0,3.2078]
[1727042727378,3.2078,2530.9,2530.3,0.39514]
[1727042727576,3.2078,2530.9,2530.0,3.2078]
[1727042727883,1.2804,2531.0,2530.4,0.39512]
[1727042728090,3.2078,2531.2,2530.7,0.39507]
[1727042728289,3.2078,2531.2,2530.3,3.2078]
[1727042728589,3.2078,2530.9,2530.5,0.39511]
[1727042728885,3.2078,2530.9,2530.1,0.6699]
[1727042729075,3.2078,2530.9,2530.2,0.39515]
[1727042729278,3.2078,2530.9,2530.1,0.6699]
[1727042729474,3.2078,2530.6,2530.0,3.2078]
[1727042729877,3.2078,2530.9,2530.3,0.39514]
[1727042730083,3.2078,2530.6,2530.4,0.39513]
[1727042730279,3.2078,2530.6,2530.0,3.2078]
[1727042730485,3.2078,2530.6,2530.2,0.39515]
[1727042730984,3.2078,2530.6,2530.0,3.2078]
[1727042731393,3.60286,2530.9,2530.1,0.39518]
[1727042731879,3.2078,2530.6,2530.1,0.39517]
[1727042732086,3.2078,2530.6,2530.0,3.2078]
[1727042732277,2.98,2530.1,2529.0,3.2078]
[1727042732482,3.2078,2529.3,2528.7,3.2078]
[1727042732687,3.2078,2529.3,2528.9,0.39535]
[1727042732890,3.2078,2529.3,2529.0,0.39535]
[1727042733088,3.2078,2529.3,2528.9,0.39536]
[1727042733288,3.2078,2529.3,2528.7,3.2078]
[1727042733487,3.2078,2529.3,2529.2,0.39532]
[1727042733986,3.2078,2529.7,2529.1,0.39533]
[1727042734292,3.2078,2529.7,2528.7,3.2078]
[1727042734595,3.2078,2529.4,2528.8,0.39537]
[1727042734789,3.2078,2529.4,2528.7,3.2078]
[1727042734986,3.2078,2529.4,2528.4,3.8772]
[1727042735187,3.2078,2529.1,2528.4,3.2078]
[1727042735489,0.98816,2529.6,2527.8,3.2078]
[1727042735490,3.2078,2528.5,2527.8,3.2078]
[1727042735794,0.39534,2529.1,2528.1,0.39548]
[1727042735994,3.2078,2528.8,2527.8,3.2078]
[1727042736289,3.2078,2528.2,2527.5,3.2078]
[1727042736494,3.2078,2528.3,2527.5,3.2078]
[1727042737191,3.2078,2528.3,2527.9,0.39551]
[1727042737493,3.2078,2528.3,2527.4,3.2078]
[1727042737794,3.2078,2528.3,2527.2,8.575]
[1727042737795,3.2078,2528.7,2528.4,0.39543]
[1727042737988,3.2078,2528.7,2528.3,3.2078]
[1727042738183,3.2078,2528.7,2528.6,0.39541]
[1727042738388,3.2078,2528.7,2528.3,7.163]
[1727042738582,3.2078,2528.7,2527.9,3.2078]
[1727042738890,3.2078,2528.7,2526.9,1.9784]
[1727042738891,0.39553,2527.9,2526.7,0.3957]
[1727042739192,2.98,2526.9,2526.2,3.2078]
[1727042739394,3.2078,2527.0,2526.2,3.2078]
[1727042740385,3.2078,2526.7,2526.2,3.2078]
[1727042740582,3.2078,2526.7,2525.3,1.3267]
[1727042740583,3.2078,2526.4,2525.8,3.2078]
[1727042740792,2.98,2526.3,2525.8,3.2078]
[1727042740989,3.2078,2526.1,2525.2,3.2078]
[1727042741194,3.2078,2526.1,2525.5,3.2078]
[1727042741392,3.2078,2526.1,2525.4,3.2078]
[1727042741585,3.2078,2526.4,2525.6,0.39588]
[1727042741793,6.1878,2526.0,2525.1,3.2078]
[1727042742087,6.1878,2526.0,2525.3,3.2078]
[1727042742088,3.2078,2526.0,2525.3,3.2078]
[1727042742293,3.2078,2526.0,2524.1,1.673]
[1727042742294,3.2078,2526.0,2525.2,3.2078]
[1727042742493,2.98,2526.4,2525.5,3.2078]
[1727042742494,3.2078,2526.4,2525.5,3.2078]
[1727042742685,3.2078,2526.9,2525.8,3.2078]
[1727042742886,3.2078,2527.4,2526.7,0.39571]
[1727042743088,3.2078,2528.4,2527.0,3.2078]
[1727042743393,3.2078,2528.2,2527.5,0.39557]
[1727042743584,3.2078,2528.2,2527.4,3.2078]
[1727042743785,3.2078,2528.2,2527.1,5.73226364]
[1727042743786,3.2078,2528.2,2527.5,3.2078]
[1727042744588,0.39543,2528.5,2527.1,0.6448]
[1727042744589,6.1878,2527.9,2527.1,0.6448]
[1727042744795,3.2078,2527.9,2527.1,0.6448]
[1727042744992,2.98,2528.3,2527.6,0.39557]
[1727042744993,3.2078,2528.2,2527.6,0.39557]
[1727042745210,3.2078,2528.2,2527.6,3.2078]
[1727042745996,3.2078,2528.2,2527.8,0.39553]
[1727042746193,3.2078,2528.2,2527.6,3.2078]
[1727042746601,3.2078,2528.2,2527.5,3.2078]
[1727042746894,3.2078,2528.2,2527.2,8.31917576]
[1727042747095,3.2078,2528.2,2527.4,0.3956]
[1727042747291,3.2078,2528.2,2527.2,8.31917576]
[1727042747292,3.2078,2528.3,2528.1,0.39548]
[1727042747491,3.2078,2528.9,2528.2,0.39547]
[1727042747695,3.2078,2528.9,2528.0,0.3955]
[1727042748003,3.2078,2528.6,2527.8,0.39553]
[1727042748191,3.2078,2528.6,2527.5,3.2078]
[1727042748390,3.2078,2528.6,2527.2,0.98905]
[1727042748391,3.2078,2528.6,2528.2,0.39546]
[1727042748603,3.2078,2528.6,2527.9,3.2078]
[1727042748795,3.2078,2528.6,2528.2,0.39546]
[1727042749101,3.2078,2528.9,2528.5,0.39543]
[1727042749290,3.2078,2528.9,2528.2,3.2078]
[1727042749495,80.265,2529.3,2528.5,3.2078]
[1727042749496,3.2078,2529.2,2528.5,3.2078]
[1727042749699,80.265,2529.3,2528.5,3.2078]
[1727042749700,83.4728,2529.3,2528.6,0.3954]
[1727042750198,83.4728,2529.3,2528.1,3.2078]
[1727042750387,83.4728,2529.3,2528.0,0.6691]
[1727042750388,3.2078,2529.0,2528.3,0.39546]
[1727042750698,2.98,2529.1,2528.1,0.39548]
[1727042750699,2.9578,2528.7,2528.1,0.39548]
[1727042750899,2.98,2529.1,2528.3,0.39545]
[1727042750900,6.1878,2529.1,2528.3,0.39545]
[1727042751398,3.2078,2529.1,2528.0,3.8769]
[1727042751794,3.2078,2529.1,2528.4,0.39544]
[1727042752001,3.2078,2529.1,2528.3,0.39545]
[1727042752202,3.2078,2529.1,2528.4,0.39544]
[1727042752501,3.2078,2529.1,2528.3,0.39545]
[1727042752695,3.2078,2529.1,2528.4,0.39543]
[1727042753093,3.2078,2528.8,2528.3,0.39545]
[1727042753297,3.2078,2529.1,2528.0,0.6691]
[1727042753497,0.39554,2527.8,2526.7,3.2078]
[1727042753807,0.39554,2527.8,2527.0,5.08541889]
[1727042753808,3.2078,2527.8,2527.0,5.08541889]
[1727042753996,3.2078,2527.8,2527.2,0.39563]
[1727042754189,0.3955,2528.1,2527.0,5.08541889]
[1727042754190,3.2078,2528.1,2527.7,0.39554]
[1727042754393,3.2078,2528.1,2527.2,3.2078]
[1727042754596,3.6033,2528.1,2527.2,3.60342]
[1727042754805,3.2078,2528.1,2527.2,3.2078]
[1727042755003,3.2078,2528.1,2526.9,0.98919]
[1727042755004,3.2078,2528.1,2527.6,0.39556]
[1727042755199,3.2078,2528.1,2527.4,3.2078]
[1727042755507,3.2078,2527.8,2527.1,0.39564]
[1727042755797,3.2078,2527.8,2526.9,3.2078]
[1727042755991,3.2078,2527.5,2526.9,3.2078]
[1727042756702,3.2078,2527.5,2527.1,0.39564]
[1727042757095,3.2078,2527.8,2527.2,0.39563]
[1727042757295,3.2078,2527.8,2527.0,0.39566]
[1727042757597,3.2078,2527.8,2527.1,0.39564]
[1727042757898,3.2078,2527.3,2526.6,3.2078]
[1727042758103,3.2078,2527.4,2526.6,3.2078]
[1727042758500,2.98,2527.5,2526.9,0.39567]
[1727042758697,3.2078,2527.7,2526.9,3.2078]
[1727042758900,3.2078,2527.7,2527.3,0.39561]
[1727042759092,3.2078,2527.7,2526.9,3.2078]
[1727042759292,3.2078,2528.6,2527.6,3.2078]
[1727042759504,3.2078,2528.6,2527.5,3.60337]
[1727042759704,6.1878,2528.3,2527.6,0.39556]
[1727042759901,6.1878,2528.3,2527.5,3.2078]
[1727042760101,0.39548,2528.2,2527.5,3.2078]
[1727042760293,6.1878,2528.3,2527.2,3.2078]
[1727042760294,3.2078,2528.0,2527.2,3.2078]
[1727042760500,3.2078,2527.9,2527.3,0.39561]
[1727042760796,3.2078,2527.9,2527.5,0.39558]
[1727042761197,3.2078,2527.9,2527.2,3.2078]
[1727042761396,0.6674,2528.7,2526.6,0.39572]
[1727042761397,0.39561,2527.4,2526.6,0.39572]
[1727042761607,6.1878,2527.6,2526.2,3.2078]
[1727042761608,2.98,2527.1,2526.2,3.2078]
[1727042761904,2.98,2527.1,2526.6,0.39572]
[1727042762105,2.98,2527.1,2526.5,3.60353]
[1727042762309,2.98,2527.1,2526.2,3.2078]
[1727042762497,3.2078,2527.2,2526.2,3.2078]
[1727042762700,6.8694,2527.5,2526.5,3.2078]
[1727042763005,3.8894,2527.5,2527.1,0.39564]
[1727042763198,3.2078,2527.5,2527.0,0.39566]
[1727042763397,3.2078,2527.5,2526.8,3.2078]
[1727042763623,3.2078,2528.1,2526.8,3.2078]
[1727042763903,0.58310507,2529.9,2526.8,3.2078]
[1727042763904,3.2078,2528.9,2527.9,3.2078]
[1727042764111,3.2078,2528.9,2528.3,0.39545]
[1727042764405,3.2078,2528.9,2527.8,3.2078]
[1727042764406,6.1878,2528.6,2528.0,5.04794892]
[1727042764606,80.265,2529.3,2527.8,3.2078]
[1727042764607,3.2078,2528.3,2527.8,3.2078]
[1727042764905,3.2078,2528.3,2527.3,0.6667]
[1727042765112,3.2078,2528.3,2527.2,3.2078]
[1727042765401,3.2078,2528.3,2527.8,0.39553]
[1727042765604,3.2078,2528.3,2527.4,0.39559]
[1727042765807,3.2078,2528.0,2527.1,3.2078]
[1727042765997,6.58335,2527.7,2527.1,3.2078]
[1727042766197,0.39564,2527.2,2526.2,3.2078]
[1727042766407,3.2078,2527.1,2526.2,3.2078]
[1727042766806,6.1878,2527.4,2526.2,3.2078]
[1727042767107,0.6621,2527.7,2526.5,3.2078]
[1727042767108,6.8499,2527.7,2526.5,3.2078]
[1727042767311,3.2078,2527.7,2527.1,3.2078]
[1727042767502,0.6904,2528.2,2527.2,3.9568]
[1727042767503,3.8982,2528.2,2527.2,3.9568]
[1727042767701,3.8699,2528.5,2527.7,0.39554]
[1727042767998,3.2078,2528.5,2527.7,3.2078]
[1727042768199,3.2078,2528.5,2527.8,3.2078]
[1727042768501,3.2078,2528.2,2527.8,3.2078]
[1727042768804,3.2078,2528.5,2527.8,3.60333]
[1727042769206,3.2078,2528.5,2527.8,3.2078]
[1727042770004,3.2078,2529.0,2528.2,0.39546]
[1727042770705,3.2078,2529.0,2528.1,3.2078]
[1727042770706,3.60316,2529.0,2528.1,3.2078]
[1727042770907,3.2078,2529.0,2528.1,3.2078]
[1727042771127,3.2078,2529.0,2527.5,1.68395]
[1727042771128,3.2078,2529.1,2528.4,3.2078]
[1727042771300,3.2078,2529.4,2528.4,3.2078]
[1727042771608,3.2078,2529.4,2528.7,3.2078]
[1727042771905,3.2078,2529.4,2528.7,3.60319]
[1727042772208,2.98,2529.7,2528.7,3.60319]
[1727042772209,2.98,2529.7,2528.7,3.2078]
[1727042772400,3.2078,2529.3,2528.7,3.2078]
[1727042772905,3.2078,2528.9,2528.0,3.8942]
[1727042773108,3.2078,2529.1,2528.4,0.39543]
[1727042773301,6.1878,2529.4,2528.6,3.2078]
[1727042773500,3.2078,2529.4,2528.8,0.39538]
[1727042774210,3.908,2529.8,2529.3,3.2078]
[1727042774916,3.2078,2529.8,2529.3,3.2078]
[1727042775109,3.2078,2530.0,2529.3,3.2078]
[1727042775302,3.2078,2530.0,2528.8,1.02686465]
[1727042775303,6.1878,2530.5,2529.6,3.60304]
[1727042775506,3.2078,2530.9,2529.9,3.2078]
[1727042775704,6.1878,2530.6,2529.9,3.2078]
[1727042775909,2.98,2530.6,2529.9,3.2078]
[1727042776110,6.1878,2530.6,2529.9,3.2078]
[1727042776305,0.39512,2530.5,2529.5,3.2078]
[1727042776508,0.39513,2530.4,2529.5,3.2078]
[1727042776713,2.98,2530.6,2529.8,3.2078]
[1727042776910,2.98,2530.6,2529.9,0.39521]
[1727042777104,3.2078,2530.4,2529.5,3.2078]
[1727042777411,3.60285,2530.9,2529.8,3.2078]
[1727042777711,3.2078,2530.9,2529.8,3.2078]
[1727042777896,3.37504,2531.0,2529.8,3.2078]
[1727042777897,3.2078,2530.6,2529.8,0.39522]
[1727042778102,3.2078,2530.9,2529.9,0.3952]
[1727042778507,3.2078,2530.9,2529.8,3.2078]
[1727042778815,3.2078,2530.6,2529.8,0.39521]
[1727042779005,3.2078,2530.6,2529.9,0.39519]
[1727042779210,3.2078,2530.6,2530.0,0.39519]
[1727042779515,3.2078,2530.9,2529.5,3.2078]
[1727042779806,2.98,2531.0,2529.4,0.98821]
[1727042779807,3.2078,2530.8,2529.8,3.2078]
[1727042779998,3.2078,2530.8,2530.7,0.39508]
[1727042780206,3.2078,2532.0,2531.2,0.395]
[1727042780399,0.7234,2532.2,2530.4,0.98782]
[1727042780400,3.2078,2531.6,2531.0,3.2078]
[1727042780606,3.2078,2531.6,2530.6,3.2078]
[1727042780805,3.2078,2531.6,2531.0,3.60283]
[1727042781011,3.2078,2531.6,2530.6,3.2078]
[1727042781314,0.7234,2532.2,2530.6,3.2078]
[1727042781315,3.2078,2532.1,2530.6,5.11834498]
[1727042781511,3.2078,2532.1,2530.8,3.2078]
[1727042781712,3.2078,2532.1,2531.1,3.2078]
[1727042781920,3.2078,2531.8,2531.4,0.39497]
[1727042782210,3.2078,2531.8,2531.1,3.2078]
[1727042782510,3.2078,2531.8,2531.4,0.39497]
[1727042782708,3.9312,2532.2,2531.5,0.39496]
[1727042782909,3.2078,2532.2,2531.5,3.2078]
[1727042783117,0.6893,2532.3,2531.7,0.39492]
[1727042783409,3.2078,2532.6,2531.8,8.35664009]
[1727042783710,2.98,2533.4,2532.3,0.39483]
[1727042783711,3.2078,2533.1,2532.3,0.39483]
[1727042783917,3.2078,2533.1,2532.1,3.2078]
[1727042784101,3.2078,2533.1,2532.2,0.39484]
[1727042784304,3.2078,2533.1,2532.1,3.2078]
[1727042784512,3.2078,2533.1,2532.0,3.2078]
[1727042784706,3.2078,2533.1,2532.6,0.39479]
[1727042784905,3.2078,2533.1,2532.3,3.2078]
[1727042785107,0.6772,2533.3,2532.8,3.2078]
[1727042785411,3.2078,2533.4,2531.8,0.98726]
[1727042785412,3.2078,2533.4,2532.4,3.2078]
[1727042785612,3.2078,2533.4,2532.5,0.39479]
[1727042786126,3.2078,2533.4,2532.4,3.2078]
[1727042786127,3.2078,2533.4,2532.6,0.39479]
[1727042786301,3.2078,2533.4,2532.7,0.39477]
[1727042786510,3.2078,2533.4,2532.5,0.39479]
[1727042786716,3.2078,2533.4,2532.7,0.39477]
[1727042787008,3.2078,2533.7,2532.8,3.2078]
[1727042787209,3.8984,2534.0,2532.8,3.2078]
[1727042787411,3.2078,2534.0,2533.3,0.39467]
[1727042787613,3.2078,2534.0,2533.4,3.2078]
[1727042787815,2.98,2534.5,2533.4,3.2078]
[1727042787816,3.2078,2534.3,2533.4,3.2078]
[1727042788014,3.2078,2534.3,2532.7,2.98]
[1727042788015,3.2078,2534.3,2533.1,3.2078]
[1727042788405,2.98,2533.8,2533.1,3.2078]
[1727042788607,3.2078,2534.0,2533.1,3.2078]
[1727042789209,3.2078,2534.0,2533.1,0.39471]
[1727042789412,3.2078,2534.0,2533.1,3.2078]
[1727042789905,3.2078,2534.0,2533.1,3.6025]
[1727042790110,3.2078,2533.7,2533.1,0.3947]
[1727042790418,3.2078,2533.7,2533.0,0.39472]
[1727042790714,0.39449,2534.6,2533.6,0.39463]
[1727042790919,3.2078,2534.4,2533.6,0.39463]
[1727042791121,3.2078,2534.1,2533.2,3.2078]
[1727042791318,3.2078,2533.9,2532.9,3.2078]
[1727042791513,3.37462,2533.7,2532.7,0.39476]
[1727042791817,3.2078,2533.5,2532.6,4.6133]
[1727042792120,3.2078,2533.5,2533.1,0.3947]
[1727042792523,3.2078,2533.5,2532.6,1.4055]
[1727042792524,3.2078,2533.5,2532.6,4.6133]
[1727042792719,0.674,2534.4,2532.6,3.2078]
[1727042792720,2.98,2533.1,2532.6,3.2078]
[1727042792926,3.2078,2532.9,2532.0,0.39487]
[1727042793115,3.2078,2532.6,2532.0,0.39487]
[1727042793419,2.98,2533.1,2531.8,9.876]
[1727042793636,3.2078,2532.9,2532.4,0.39481]
[1727042793817,3.2078,2532.9,2532.3,3.60263]
[1727042794119,3.2078,2532.9,2532.3,3.2078]
[1727042794520,3.2078,2532.6,2532.0,3.2078]
[1727042794727,3.60254,2533.0,2532.0,3.2078]
[1727042794913,0.39476,2532.8,2531.8,9.876]
[1727042795113,2.98,2533.1,2531.8,10.2709]
[1727042795114,3.2078,2532.6,2531.8,10.2709]
[1727042795314,3.2078,2532.8,2531.8,9.876]
[1727042795512,3.2078,2532.5,2531.9,0.39489]
[1727042795711,3.60261,2532.5,2531.7,3.9228]
[1727042795922,1.67827,2532.9,2530.9,2.98]
[1727042795923,3.2078,2532.2,2531.4,3.87]
[1727042796228,6.1878,2532.3,2531.4,3.2078]
[1727042796518,3.2078,2532.3,2531.6,0.39494]
[1727042796920,3.2078,2532.3,2531.4,3.2078]
[1727042796921,3.2078,2532.3,2531.7,3.2078]
[1727042797130,3.8992,2532.9,2531.8,3.9496]
[1727042797313,3.8992,2532.9,2532.3,0.39483]
[1727042797515,3.8992,2532.9,2531.9,0.39489]
[1727042797726,3.2078,2532.5,2531.7,3.9233]
[1727042797912,3.2078,2532.2,2531.4,3.2078]
[1727042798120,6.1878,2532.7,2531.4,3.2078]
[1727042798420,3.2078,2532.4,2531.4,3.2078]
[1727042799221,3.2078,2532.1,2531.3,0.39499]
[1727042799530,3.2078,2532.1,2531.1,3.2078]
[1727042799531,3.2078,2531.9,2531.1,3.2078]
[1727042799925,3.2078,2532.2,2531.1,3.2078]
[1727042800118,2.98,2532.4,2531.1,3.2078]
[1727042800119,3.2078,2531.9,2531.1,3.2078]
[1727042800424,3.2078,2532.2,2531.8,0.3949]
[1727042800627,3.2078,2532.2,2531.3,3.2078]
[1727042800814,3.2078,2532.2,2531.6,3.2078]
[1727042801617,3.6027,2531.9,2531.1,3.60281]
[1727042802035,3.2078,2531.9,2531.2,0.395]
[1727042802326,3.2078,2531.9,2531.3,0.39498]
[1727042802532,3.2078,2531.9,2531.5,0.39496]
[1727042802822,3.2078,2531.9,2531.5,3.2078]
[1727042803124,3.2078,2531.9,2531.7,0.39492]
[1727042803321,3.2078,2531.9,2531.5,3.2078]
[1727042803521,3.2078,2531.9,2531.1,3.60281]
[1727042803722,3.2078,2531.9,2530.8,3.9233]
[1727042803926,3.2078,2531.6,2530.8,3.9233]
[1727042804231,3.2078,2531.6,2531.0,0.39503]
[1727042804526,0.39492,2531.8,2531.1,0.39502]
[1727042804732,3.2078,2531.9,2531.2,0.395]
[1727042805026,3.2078,2531.3,2530.5,3.2078]
[1727042805229,3.60272,2531.8,2530.8,3.2078]
[1727042805428,3.60272,2531.8,2531.0,0.39502]
[1727042805617,3.60272,2531.8,2531.1,0.39501]
[1727042805821,3.60272,2531.8,2530.8,3.2078]
[1727042805822,3.2078,2531.8,2530.8,3.2078]
[1727042806018,3.2078,2531.8,2531.2,0.395]
[1727042807027,3.2078,2531.8,2531.7,0.39493]
[1727042807236,3.2078,2532.5,2531.6,3.2078]
[1727042807429,3.60265,2532.2,2531.4,0.39497]
[1727042807725,0.39487,2532.1,2531.3,3.60278]
[1727042807935,3.2078,2532.2,2531.3,3.2078]
[1727042807936,0.3949,2531.9,2531.3,3.2078]
[1727042808120,3.2078,2532.2,2531.3,3.2078]
[1727042808320,3.2078,2531.8,2531.3,3.2078]
[1727042808524,3.2078,2532.0,2531.5,0.39496]
[1727042808731,3.60267,2532.1,2531.4,0.39496]
[1727042808929,3.2078,2532.1,2531.3,3.2078]
[1727042809228,3.60267,2532.1,2531.4,0.39497]
[1727042809530,3.2078,2532.1,2531.3,3.2078]
[1727042809729,0.39484,2532.3,2531.6,0.39494]
[1727042809935,3.2078,2532.1,2531.5,0.39495]
[1727042810126,3.2078,2532.1,2531.7,0.39492]
[1727042810326,0.39483,2532.4,2531.6,0.39494]
[1727042810327,0.39484,2532.3,2531.6,0.39494]
[1727042810527,3.2078,2532.1,2531.6,0.39494]
[1727042810726,3.60267,2532.1,2531.3,3.2078]
[1727042811036,0.7109,2532.6,2531.4,0.39497]
[1727042811037,3.2078,2532.3,2531.4,0.39497]
[1727042811223,2.98,2532.5,2531.5,0.39495]
[1727042811224,3.60266,2532.2,2531.5,0.39495]
[1727042811430,3.2078,2532.2,2531.7,0.39493]
[1727042811632,3.2078,2532.2,2531.7,0.39492]
[1727042812025,3.2078,2532.2,2531.3,3.2078]
[1727042812226,3.2078,2532.2,2531.8,0.3949]
[1727042812434,3.2078,2532.2,2531.6,3.2078]
[1727042812732,0.39487,2532.1,2531.3,0.39497]
[1727042812939,0.39487,2532.1,2531.4,0.39496]
[1727042813131,3.2078,2531.9,2531.4,0.39496]
[1727042813330,3.2078,2532.3,2531.1,3.2078]
[1727042813538,0.39485,2532.2,2531.5,0.39495]
[1727042813735,0.39486,2532.2,2531.5,0.39496]
[1727042813930,3.60264,2532.3,2531.6,0.39494]
[1727042814131,3.2078,2532.3,2531.4,3.2078]
[1727042814333,3.60264,2532.3,2531.6,0.39494]